[Event "13th Poti Nana Aleksandria Cup"]
[Site "Poti"]
[Date "2018.07.14"]
[Round "2"]
[White "Poormosavi, Seyed Kian"]
[Black "Avetisyan, Mariam"]
[Result "0-1"]
[ECO "C06"]
[WhiteElo "2221"]
[BlackElo "2051"]
[Annotator "NA"]
[PlyCount "101"]
[EventDate "2018.07.13"]
[EventType "swiss"]
[EventCountry "GEO"]
[SourceTitle "playchess.com"]
[Source "ChessBase"]
[SourceQuality "1"]
[TimeControl "40/5400+30:1800+30"]

1. e4 {[%emt 0:00:50]} e6 {[%emt 0:00:00]} 2. d4 {[%emt 0:00:04]} d5 {[%emt 0:00:00]} 3. Nd2 {[%emt 0:00:05]} Nf6 {[%emt 0:00:00]} 4. e5 {[%emt 0:00:09]} Nfd7 {[%emt 0:00:00]} 5. Bd3 {[%emt 0:00:40]} c5 {[%emt 0:00:00]} 6. c3 {[%emt 0:00:33]} Nc6 {[%emt 0:00:00]} 7. Ne2 {[%emt 0:00:07]} cxd4 {[%emt 0:00:01]} 8. cxd4 {[%emt 0:00:05]} f6 {[%emt 0:00:09]} 9. exf6 {[%emt 0:00:12]} Nxf6 {[%emt 0:00:04]} 10. Nf3 {[%emt 0:01:34]} Bd6 {[%emt 0:00:05]} 11. O-O {[%emt 0:01:17]} Qc7 {[%emt 0:00:05]} 12. Bg5 {[%emt 0:08:37]} O-O {[%emt 0:01:21] LiveBook: 950 Games} 13. Nc3 {[%emt 0:11:28]} a6 {[%emt 0:03:17]} 14. Rc1 {[%emt 0:04:30]} Bd7 {[%emt 0:20:54]} 15. a3 {[%emt 0:09:40] C06: French Tarrasch: 3...Nf6 4 e5 Nfd7 5 Bd3 main lines} (15. Bh4 Be8 16. Qe1 Kh8 17. Bg3 Bxg3 18. hxg3 Bh5 19. Ne5 Nxe5 20. dxe5 Ng4 21. Be2 Qxe5 22. Bxg4 Qxe1 23. Rfxe1 Bxg4 {½-½ (41) Van Kampen,R (2618)-Williams,S (2455) England 2014}) 15... Be8 {[%emt 0:23:31]} 16. Qe2 {[%emt 0:08:44]} Qf7 $146 {[%emt 0:08:40]} ({Predecessor:} 16... Bf7 17. b4 Qe7 18. Rce1 Rac8 19. Na4 h6 20. Bh4 Rce8 21. Qe3 e5 22. dxe5 Nxe5 23. Nxe5 Qxe5 24. Qxe5 Rxe5 25. Rxe5 Bxe5 {½-½ (34) Thierry,R (2304)-Svoboda,F (2432) ICCF email 2009}) 17. Bh4 {[%emt 0:03:37]} Bf4 {[%emt 0:06:26]} 18. Rce1 {[%emt 0:01:09]} Bd7 {[%emt 0:02:57]} 19. Qc2 {[%emt 0:18:01]} Qh5 {[%emt 0:04:49]} 20. Bg3 {[%emt 0:01:12]} Qh6 {[%emt 0:06:29]} 21. Ne2 {[%emt 0:09:01]} Bxg3 {[%emt 0:00:49]} 22. fxg3 {[%emt 0:01:26]} Ng4 {[%emt 0:02:18]} 23. Nf4 {[%emt 0:11:09]} Nxd4 {[%emt 0:06:58]} 24. Bxh7+ {[%emt 0:01:40]} Qxh7 {[%emt 0:00:48]} 25. Qxh7+ {[%emt 0:00:16]} Kxh7 {[%emt 0:00:03]} 26. Nxd4 {[%emt 0:00:01]} e5 {[%emt 0:01:18]} 27. h3 {[%emt 0:02:43]} exf4 {[%emt 0:00:38]} 28. hxg4 {[%emt 0:00:17]} fxg3 {[%emt 0:00:05]} 29. Nf5 {[%emt 0:02:28]} Bxf5 {[%emt 0:01:16]} 30. gxf5 {[%emt 0:00:06]} Rae8 {[%emt 0:00:43]} 31. Rd1 {[%emt 0:02:08]} Re5 {[%emt 0:01:15]} 32. Rf3 {[%emt 0:00:59]} Rfxf5 {[%emt 0:02:04]} 33. Rxg3 {[%emt 0:00:07]} Rg5 {[%emt 0:02:55]} 34. Rxg5 {[%emt 0:00:57]} Rxg5 {[%emt 0:00:16]} 35. Kf2 {[%emt 0:00:47]} Kg6 {[%emt 0:01:11]} 36. Kf3 {[%emt 0:00:41]} Kf6 {[%emt 0:00:12]} 37. g4 {[%emt 0:00:27]} Re5 {[%emt 0:01:23]} 38. Rc1 {[%emt 0:00:18]} d4 {[%emt 0:01:23]} 39. Rc4 {[%emt 0:00:38]} Re3+ {[%emt 0:00:35]} 40. Kf2 {[%emt 0:00:00]} Rb3 {[%emt 0:00:00]} 41. Rxd4 {[%emt 0:03:40]} Rxb2+ {[%emt 0:03:21]} 42. Kf3 {[%emt 0:00:26]} Rb3+ {[%emt 0:11:21]} 43. Kf4 $19 {[%emt 0:00:55]} g5+ {[%emt 0:01:02]} 44. Ke4 {[%emt 0:00:07]} Ke6 {[%emt 0:00:20]} 45. Rd8 {[%emt 0:10:29]} Rxa3 {[%emt 0:00:18]} 46. Re8+ {[%emt 0:00:06]} Kf7 {[%emt 0:02:25]} 47. Rb8 {[%emt 0:01:04]} Ra4+ {[%emt 0:01:17]} 48. Ke5 {[%emt 0:04:40]} Rb4 {[%emt 0:02:34]} 49. Kf5 {[%emt 0:00:15]} Rb5+ {[%emt 0:00:06]} 50. Ke4 {[%emt 0:00:03]} a5 {[%emt 0:01:50]} 51. Ra8 {[%emt 0:00:30]} 0-1

[Event "13th Poti Nana Aleksandria Cup"]
[Site "Poti"]
[Date "2018.07.14"]
[Round "2"]
[White "Matevosyan, Sedrak"]
[Black "Sindarov, Javokhir"]
[Result "1/2-1/2"]
[ECO "E91"]
[WhiteElo "2161"]
[BlackElo "2474"]
[Annotator "ChessBase"]
[PlyCount "109"]
[EventDate "2018.07.13"]
[EventType "swiss"]
[EventCountry "GEO"]
[SourceTitle "playchess.com"]
[Source "ChessBase"]
[SourceQuality "1"]
[TimeControl "40/5400+30:1800+30"]

1. c4 {[%emt 0:00:00]} g6 {[%emt 0:00:00]} 2. d4 {[%emt 0:00:04]} Nf6 {[%emt 0:00:00]} 3. Nc3 {[%emt 0:00:07]} Bg7 {[%emt 0:00:00]} 4. e4 {[%emt 0:00:24]} d6 {[%emt 0:00:00]} 5. Nf3 {[%emt 0:00:21]} O-O {[%emt 0:00:05]} 6. Be2 {[%emt 0:00:05]} Bg4 {[%emt 0:00:03]} 7. Be3 {[%emt 0:00:35]} Nfd7 {[%emt 0:00:06]} 8. Ng1 {[%emt 0:03:56]} Bxe2 {[%emt 0:00:09]} 9. Ngxe2 {[%emt 0:00:06]} c5 {[%emt 0:00:29]} 10. O-O {[%emt 0:02:14]} Nc6 {[%emt 0:01:38]} 11. b3 {[%emt 0:09:43]} a6 {[%emt 0:01:11]} 12. a4 {[%emt 0:08:06]} Qa5 {[%emt 0:13:02]} 13. Rc1 {[%emt 0:12:33]} cxd4 {[%emt 0:00:28]} 14. Nxd4 {[%emt 0:00:19]} Nc5 {[%emt 0:00:05]} 15. Nd5 {[%emt 0:08:39]} Qd8 {[%emt 0:02:55]} 16. Nxc6 {[%emt 0:24:41]} bxc6 {[%emt 0:00:11]} 17. Nb4 {[%emt 0:04:56]} Qc7 {[%emt 0:06:11]} 18. Qc2 {[%emt 0:00:57]} Rfb8 {[%emt 0:06:22]} 19. Bxc5 {[%emt 0:00:31]} dxc5 {[%emt 0:00:04]} 20. Nd3 {[%emt 0:00:10]} Bd4 {[%emt 0:00:05]} 21. Rcd1 {[%emt 0:02:31]} Rb7 {[%emt 0:02:02]} 22. g3 {[%emt 0:01:00]} Rab8 {[%emt 0:03:45]} 23. Nc1 {[%emt 0:00:15]} e5 {[%emt 0:00:59]} 24. Rd3 {[%emt 0:01:34]} Qd7 {[%emt 0:02:27]} 25. Ne2 {[%emt 0:02:47]} f5 {[%emt 0:02:37]} 26. Nxd4 {[%emt 0:00:54]} cxd4 {[%emt 0:05:24]} 27. Re1 {[%emt 0:04:20]} c5 {[%emt 0:02:13]} 28. exf5 {[%emt 0:00:56]} Qxf5 {[%emt 0:00:04]} 29. Qe2 {[%emt 0:01:00]} Rf7 {[%emt 0:04:26]} 30. f3 {[%emt 0:05:32]} Rfb7 {[%emt 0:00:07]} 31. g4 {[%emt 0:00:52]} Qf6 {[%emt 0:06:56]} 32. Qxe5 {[%emt 0:00:09]} Qxe5 {[%emt 0:00:04]} 33. Rxe5 {[%emt 0:00:03]} Rxb3 {[%emt 0:00:11]} 34. Rxb3 {[%emt 0:00:03]} Rxb3 {[%emt 0:00:08]} 35. Rxc5 {[%emt 0:00:06]} Rxf3 {[%emt 0:00:07]} 36. Rd5 {[%emt 0:05:19]} Rf4 {[%emt 0:00:58]} 37. h3 {[%emt 0:00:51]} Kf7 {[%emt 0:00:55]} 38. Kg2 {[%emt 0:00:36]} d3 {[%emt 0:06:29]} 39. c5 {[%emt 0:00:25]} Rxa4 {[%emt 0:00:08]} 40. Rxd3 {[%emt 0:00:00]} Ke6 {[%emt 0:00:00]} 41. Rd6+ {[%emt 0:06:56]} Ke5 {[%emt 0:00:42]} 42. Rd7 {[%emt 0:01:29]} Rc4 {[%emt 0:00:35]} 43. Ra7 {[%emt 0:04:31]} Kf4 {[%emt 0:01:29]} 44. Rxa6 {[%emt 0:03:37]} Rc2+ {[%emt 0:00:08]} 45. Kf1 {[%emt 0:00:14]} Rxc5 {[%emt 0:01:16]} 46. Ra7 {[%emt 0:01:53]} Kg3 {[%emt 0:01:29]} 47. Rxh7 {[%emt 0:00:45]} Re5 {[%emt 0:00:09]} 48. Rh6 {[%emt 0:02:05]} Re6 {[%emt 0:00:18]} 49. h4 {[%emt 0:01:24]} Rf6+ {[%emt 0:00:19]} 50. Ke2 {[%emt 0:00:36]} Re6+ {[%emt 0:03:31]} 51. Kd3 {[%emt 0:00:45]} Kxg4 {[%emt 0:02:36]} 52. h5 {[%emt 0:00:20]} Kg5 {[%emt 0:00:07]} 53. Rxg6+ {[%emt 0:00:04]} Rxg6 {[%emt 0:00:05]} 54. hxg6 {[%emt 0:00:03]} Kxg6 {[%emt 0:00:05]} 55. Kd4 1/2-1/2

[Event "13th Poti Nana Aleksandria Cup"]
[Site "Poti"]
[Date "2018.07.14"]
[Round "2"]
[White "Kokaia, Guram"]
[Black "Samadov, Read"]
[Result "1-0"]
[WhiteElo "2159"]
[BlackElo "2037"]
[Annotator "NA"]
[PlyCount "90"]
[EventDate "2018.07.13"]
[EventType "swiss"]
[EventCountry "GEO"]
[SourceTitle "playchess.com"]
[Source "ChessBase"]
[SourceQuality "1"]
[TimeControl "40/5400+30:1800+30"]

1. e4 {[%emt 0:00:00]} e6 {[%emt 0:00:10]} 2. d4 {[%emt 0:00:07]} d5 {[%emt 0:00:06]} 3. Nd2 {[%emt 0:00:07]} c5 {[%emt 0:00:06]} 4. Ngf3 {[%emt 0:00:15]} Nc6 {[%emt 0:00:18]} 5. exd5 {[%emt 0:00:56]} exd5 {[%emt 0:00:10]} 6. Bb5 {[%emt 0:00:13]} Bd6 {[%emt 0:00:39]} 7. O-O {[%emt 0:00:40]} Nge7 {[%emt 0:00:27]} 8. dxc5 {[%emt 0:03:40]} Bxc5 {[%emt 0:00:12]} 9. Nb3 {[%emt 0:01:58]} Bd6 {[%emt 0:00:54]} 10. Bg5 {[%emt 0:01:35]} O-O {[%emt 0:03:42]} 11. Bh4 {[%emt 0:02:37]} Qc7 {[%emt 0:08:33]} 12. Bg3 {[%emt 0:00:11]} Bg4 {[%emt 0:06:44]} 13. Be2 {[%emt 0:07:57]} Bxg3 {[%emt 0:08:46]} 14. hxg3 {[%emt 0:00:10] LiveBook: 6 Games} Bxf3 {[%emt 0:09:33]} 15. Bxf3 {[%emt 0:03:16]} Rad8 {[%emt 0:02:25]} 16. c3 {[%emt 0:00:44]} Qb6 {[%emt 0:04:07]} 17. Re1 $14 {[%emt 0:06:18]} Ng6 {[%emt 0:07:47]} 18. Qd2 {[%emt 0:13:39]} Nge5 {[%emt 0:08:53]} 19. Rad1 {[%emt 0:03:49]} Nxf3+ {[%emt 0:03:35]} 20. gxf3 {[%emt 0:00:06]} a5 {[%emt 0:04:33]} 21. Qe3 {[%emt 0:05:41]} Qc7 {[%emt 0:05:12]} 22. Nd4 {[%emt 0:06:58]} Qd7 {[%emt 0:01:26]} 23. Kg2 {[%emt 0:05:54]} Rfe8 {[%emt 0:02:37]} 24. Qf4 {[%emt 0:01:53]} f6 {[%emt 0:02:58]} 25. Rxe8+ {[%emt 0:10:36]} Rxe8 {[%emt 0:01:17]} 26. Rd2 {[%emt 0:02:08]} Re5 {[%emt 0:02:33]} 27. Nc2 {[%emt 0:07:06]} Rf5 {[%emt 0:01:34]} 28. Qa4 {[%emt 0:07:25]} Rh5 {[%emt 0:06:03]} 29. Qg4 {[%emt 0:02:51]} Qxg4 {[%emt 0:02:38]} 30. fxg4 {[%emt 0:00:01]} Re5 {[%emt 0:00:20]} 31. Ne3 {[%emt 0:03:30]} Ne7 {[%emt 0:01:22]} 32. Rd3 {[%emt 0:01:25]} b6 {[%emt 0:01:48]} 33. f4 {[%emt 0:00:46]} Re6 {[%emt 0:01:44]} 34. Kf3 {[%emt 0:00:25]} Rd6 {[%emt 0:01:00]} 35. c4 {[%emt 0:01:10]} d4 {[%emt 0:01:02]} 36. Nf5 {[%emt 0:00:39]} Nxf5 {[%emt 0:00:25]} 37. gxf5 {[%emt 0:00:02]} Kf7 {[%emt 0:01:32]} 38. Ke4 {[%emt 0:00:12]} g6 {[%emt 0:00:28]} 39. fxg6+ {[%emt 0:01:16]} hxg6 {[%emt 0:00:27]} 40. Rxd4 {[%emt 0:00:18]} f5+ {[%emt 0:00:18]} 41. Ke3 {[%emt 0:02:37]} Re6+ {[%emt 0:03:00]} 42. Kf3 {[%emt 0:00:09]} Ke7 {[%emt 0:05:40]} 43. Rd5 {[%emt 0:01:48]} Rc6 {[%emt 0:03:05]} 44. b3 {[%emt 0:10:48]} a4 {[%emt 0:04:16]} 45. Ke3 {[%emt 0:04:08]} Re6+ {[%emt 0:04:58]} 1-0

[Event "13th Poti Nana Aleksandria Cup"]
[Site "Poti"]
[Date "2018.07.14"]
[Round "2"]
[White "Eynullayev, Altay"]
[Black "Nigmatov, Ortik"]
[Result "0-1"]
[ECO "A58"]
[WhiteElo "2134"]
[BlackElo "2461"]
[Annotator "ChessBase"]
[PlyCount "94"]
[EventDate "2018.07.13"]
[EventType "swiss"]
[EventCountry "GEO"]
[SourceTitle "playchess.com"]
[Source "ChessBase"]
[SourceQuality "1"]
[TimeControl "40/5400+30:1800+30"]

1. d4 {[%emt 0:00:00]} Nf6 {[%emt 0:00:00]} 2. c4 {[%emt 0:00:00]} c5 {[%emt 0:00:15]} 3. d5 {[%emt 0:00:00]} b5 {[%emt 0:00:06]} 4. cxb5 {[%emt 0:00:00]} a6 {[%emt 0:00:05]} 5. bxa6 {[%emt 0:00:00]} g6 {[%emt 0:00:07]} 6. Nc3 {[%emt 0:00:00]} Bg7 {[%emt 0:00:07]} 7. e4 {[%emt 0:00:05]} O-O {[%emt 0:00:08]} 8. Be2 {[%emt 0:00:02]} Qa5 {[%emt 0:04:24]} 9. Bd2 {[%emt 0:00:05]} Bxa6 {[%emt 0:02:14]} 10. e5 {[%emt 0:00:08]} Ne8 {[%emt 0:01:16]} 11. Nf3 {[%emt 0:00:09]} d6 {[%emt 0:07:06]} 12. e6 {[%emt 0:00:38]} f5 {[%emt 0:04:49]} 13. h4 {[%emt 0:06:23]} Nf6 {[%emt 0:17:48]} 14. Ne4 {[%emt 0:25:03]} Bxe2 {[%emt 0:08:12]} 15. Nxf6+ {[%emt 0:01:43]} Bxf6 {[%emt 0:00:07]} 16. Qxe2 {[%emt 0:00:12]} Qa6 {[%emt 0:03:03]} 17. Bc3 {[%emt 0:01:32]} Qxe2+ {[%emt 0:03:05]} 18. Kxe2 {[%emt 0:00:02]} Na6 {[%emt 0:00:08]} 19. Rhd1 {[%emt 0:04:37]} Nc7 {[%emt 0:07:20]} 20. Bxf6 {[%emt 0:16:26]} Rxf6 {[%emt 0:01:14]} 21. a3 {[%emt 0:04:23]} Rff8 {[%emt 0:00:13]} 22. Rac1 {[%emt 0:03:59]} Rfb8 {[%emt 0:05:42]} 23. Rc2 {[%emt 0:05:58]} Kg7 {[%emt 0:00:55]} 24. Rd3 {[%emt 0:03:20]} Ra4 {[%emt 0:02:33]} 25. g3 {[%emt 0:06:32]} Re4+ {[%emt 0:09:04]} 26. Kd1 {[%emt 0:00:45]} Rb7 {[%emt 0:14:05]} 27. Kc1 {[%emt 0:09:07]} h6 {[%emt 0:00:54]} 28. Kd1 {[%emt 0:04:12]} Kf6 {[%emt 0:01:26]} 29. b3 {[%emt 0:01:13]} g5 {[%emt 0:03:16]} 30. hxg5+ {[%emt 0:02:06]} hxg5 {[%emt 0:00:01]} 31. Re2 {[%emt 0:01:38]} Rxe2 {[%emt 0:02:11]} 32. Kxe2 {[%emt 0:00:01]} g4 {[%emt 0:00:12]} 33. Nd2 {[%emt 0:00:39]} Nb5 {[%emt 0:00:16]} 34. f3 {[%emt 0:04:08]} Nxa3 {[%emt 0:01:22]} 35. fxg4 {[%emt 0:00:05]} fxg4 {[%emt 0:00:08]} 36. Ke3 {[%emt 0:00:59]} Kf5 {[%emt 0:01:00]} 37. Rc3 {[%emt 0:00:53]} Rb4 {[%emt 0:00:57]} 38. Rc1 {[%emt 0:01:24]} Ke5 {[%emt 0:00:22]} 39. Rf1 {[%emt 0:00:27]} Kxd5 {[%emt 0:00:24]} 40. Rf4 {[%emt 0:00:00]} Nc2+ {[%emt 0:00:00]} 41. Kd3 {[%emt 0:01:53]} Rxf4 {[%emt 0:01:20]} 42. gxf4 {[%emt 0:00:03]} Nb4+ {[%emt 0:00:05]} 43. Ke3 {[%emt 0:01:23]} Kxe6 {[%emt 0:00:01]} 44. Nf1 {[%emt 0:00:40]} Nc6 {[%emt 0:03:07]} 45. Nd2 {[%emt 0:01:42]} Nd4 {[%emt 0:01:53]} 46. Kf2 {[%emt 0:02:20]} Kf5 {[%emt 0:00:23]} 47. Ke3 {[%emt 0:00:06]} Nc2+ {[%emt 0:00:27] Kd4 Ke5+} 0-1

[Event "13th Poti Nana Aleksandria Cup"]
[Site "Poti"]
[Date "2018.07.14"]
[Round "2"]
[White "Eynullayev, Atilla"]
[Black "Danielyan, Vahe"]
[Result "0-1"]
[ECO "A58"]
[WhiteElo "2120"]
[BlackElo "2317"]
[Annotator "NA"]
[PlyCount "112"]
[EventDate "2018.07.13"]
[EventType "swiss"]
[EventCountry "GEO"]
[SourceTitle "playchess.com"]
[Source "ChessBase"]
[SourceQuality "1"]
[TimeControl "40/5400+30:1800+30"]

1. d4 {[%emt 0:00:00]} Nf6 {[%emt 0:00:00]} 2. c4 {[%emt 0:00:00]} c5 {[%emt 0:00:00]} 3. d5 {[%emt 0:00:00]} b5 {[%emt 0:00:00]} 4. cxb5 {[%emt 0:00:00]} a6 {[%emt 0:00:00]} 5. bxa6 {[%emt 0:00:00]} g6 {[%emt 0:00:00]} 6. Nc3 {[%emt 0:00:00] A58: Benko/Volga Gambit: Lines with 5 bxa6} Bg7 {[%emt 0:00:01]} 7. e4 {[%emt 0:00:00]} (7. Nf3 O-O 8. g3 d6 9. Bg2 Nxa6 10. O-O Bf5 11. Nh4 Bd7 12. b3 Qb6 13. Bd2 Rfb8 14. Re1 Nc7 15. Qc2 Ra3 16. Qc1 Qa7 17. e4 Ng4 18. h3 {0-1 (38) Li,C (2732)-Shankland,S (2671) Liaocheng 2018}) 7... O-O {[%emt 0:00:03]} 8. Be2 {[%emt 0:00:00]} Qa5 {[%emt 0:01:00] LiveBook: 26 Partien} 9. Bd2 {[%emt 0:00:09]} Bxa6 {[%emt 0:00:23]} 10. e5 {[%emt 0:00:04]} Ne8 {[%emt 0:00:30]} 11. Nf3 {[%emt 0:00:30]} d6 {[%emt 0:00:30]} 12. e6 {[%emt 0:00:30]} fxe6 {[%emt 0:00:30]} 13. dxe6 {[%emt 0:00:30]} Bxe2 {[%emt 0:00:30]} 14. Qxe2 {[%emt 0:00:30]} Nc6 $146 {[%emt 0:00:30]} ({Predecessor:} 14... Qa6 15. Qxa6 Nxa6 16. Nd5 Ra7 17. Bc3 Bxc3+ 18. Nxc3 Ng7 {½-½ (18) Zanan,E (2450)-Semjonovs,I (2181) Pardubice 2016}) 15. O-O {[%emt 0:00:30]} Rb8 {[%emt 0:04:47]} 16. Be1 {[%emt 0:56:08]} Nd4 {[%emt 0:02:56]} 17. Nxd4 {[%emt 0:00:52]} cxd4 {[%emt 0:00:56]} 18. Nd1 {[%emt 0:10:08]} Qd5 {[%emt 0:06:01]} 19. Qd3 {[%emt 0:02:01]} Nc7 {[%emt 0:00:30]} 20. Bd2 {[%emt 0:05:20]} Nxe6 {[%emt 0:00:34]} 21. b4 {[%emt 0:02:34]} Nf4 {[%emt 0:01:43]} 22. Bxf4 {[%emt 0:00:13]} Rxf4 {[%emt 0:00:04]} 23. a3 {[%emt 0:03:26]} e5 {[%emt 0:00:26]} 24. f3 {[%emt 0:03:31]} Qe6 {[%emt 0:03:26]} 25. Nf2 {[%emt 0:04:22]} d5 {[%emt 0:00:23]} 26. Qd2 {[%emt 0:02:36]} Rbf8 {[%emt 0:02:22]} 27. Nd3 {[%emt 0:03:32]} R4f5 {[%emt 0:01:22]} 28. Nc5 {[%emt 0:01:07]} Qf7 {[%emt 0:00:11]} 29. Rfe1 {[%emt 0:02:36]} g5 {[%emt 0:00:34]} 30. h3 {[%emt 0:03:05]} h5 {[%emt 0:00:30]} 31. a4 {[%emt 0:00:30]} g4 {[%emt 0:00:30]} 32. hxg4 {[%emt 0:00:30]} hxg4 {[%emt 0:00:30]} 33. fxg4 {[%emt 0:00:30]} Rf2 {[%emt 0:00:30]} 34. Qg5 {[%emt 0:00:30]} e4 {[%emt 0:00:30]} 35. Nxe4 {[%emt 0:00:30]} dxe4 {[%emt 0:00:30]} 36. Rxe4 {[%emt 0:00:30]} Rxg2+ {[%emt 0:05:09]} 37. Kxg2 {[%emt 0:00:00]} Qf3+ {[%emt 0:00:04]} 38. Kg1 {[%emt 0:00:05]} Qxe4 {[%emt 0:00:41]} 39. Rf1 {[%emt 0:00:43]} Rxf1+ {[%emt 0:00:23]} 40. Kxf1 {[%emt 0:00:00]} d3 {[%emt 0:00:00]} 41. Qd8+ {[%emt 0:04:07]} Kh7 {[%emt 0:00:35]} 42. Qd7 {[%emt 0:01:55]} Qe2+ {[%emt 0:05:30]} 43. Kg1 {[%emt 0:00:22]} Qe3+ {[%emt 0:00:25]} 44. Kf1 {[%emt 0:08:09]} d2 {[%emt 0:00:42]} 45. Qf5+ {[%emt 0:00:22]} Kg8 {[%emt 0:00:28]} 46. Qd5+ {[%emt 0:01:47]} Kh8 {[%emt 0:00:26]} 47. Qh1+ {[%emt 0:01:55]} Bh6 {[%emt 0:00:47]} 48. Qa8+ {[%emt 0:00:09]} Kg7 {[%emt 0:00:27]} 49. Qb7+ {[%emt 0:00:18]} Kg6 {[%emt 0:00:11]} 50. Qc6+ {[%emt 0:04:56]} Kg5 {[%emt 0:00:12]} 51. Qd5+ {[%emt 0:02:32]} Kh4 {[%emt 0:00:05]} 52. Qh1+ {[%emt 0:01:18]} Kg3 {[%emt 0:01:34]} 53. Qg2+ {[%emt 0:00:38]} Kf4 {[%emt 0:00:07]} 54. Qh2+ {[%emt 0:01:20]} Ke4 {[%emt 0:00:08]} 55. Qe2 {[%emt 0:01:33]} Kd4 {[%emt 0:00:05]} 56. Qd1 {[%emt 0:00:41]} Qh3+ {[%emt 0:00:09]} 0-1

[Event "13th Poti Nana Aleksandria Cup"]
[Site "Poti"]
[Date "2018.07.14"]
[Round "2"]
[White "Mustafayev, Farid"]
[Black "Arakelyan, Nare"]
[Result "1-0"]
[WhiteElo "2068"]
[BlackElo "1834"]
[Annotator "NA"]
[PlyCount "121"]
[EventDate "2018.07.13"]
[EventType "swiss"]
[EventCountry "GEO"]
[SourceTitle "playchess.com"]
[Source "ChessBase"]
[SourceQuality "1"]
[TimeControl "40/5400+30:1800+30"]

1. d4 {[%emt 0:00:00]} d5 {[%emt 0:00:00]} 2. c4 {[%emt 0:00:00]} c6 {[%emt 0:00:00]} 3. Nf3 {[%emt 0:00:00]} Nf6 {[%emt 0:00:00]} 4. g3 {[%emt 0:00:04]} dxc4 {[%emt 0:02:06]} 5. Bg2 {[%emt 0:00:19]} Nbd7 {[%emt 0:00:16]} 6. Qc2 {[%emt 0:04:38]} Nb6 {[%emt 0:03:42]} 7. O-O {[%emt 0:01:34]} g6 {[%emt 0:01:13]} 8. e4 {[%emt 0:03:21]} Bg7 {[%emt 0:01:39]} 9. a4 {[%emt 0:00:19]} a5 {[%emt 0:00:23]} 10. h3 {[%emt 0:02:07]} h6 {[%emt 0:06:18]} 11. Be3 {[%emt 0:00:45]} Nxe4 {[%emt 0:03:36]} 12. Bxh6 {[%emt 0:09:19]} Rxh6 {[%emt 0:05:12]} 13. Qxe4 {[%emt 0:00:08]} Bf5 {[%emt 0:03:47]} 14. Qf4 {[%emt 0:02:49]} Nd5 {[%emt 0:01:00]} 15. Qd2 {[%emt 0:01:15]} Bxh3 {[%emt 0:02:35]} 16. Bxh3 {[%emt 0:01:59]} Rxh3 {[%emt 0:00:05]} 17. Re1 {[%emt 0:11:28]} Qc7 {[%emt 0:08:24]} 18. Na3 {[%emt 0:18:55]} Bh6 {[%emt 0:05:29]} 19. Qe2 {[%emt 0:03:16]} c3 {[%emt 0:05:27]} 20. bxc3 {[%emt 0:02:09]} Nxc3 {[%emt 0:00:04]} 21. Qf1 {[%emt 0:01:37]} Rh5 {[%emt 0:01:33]} 22. Nc4 {[%emt 0:05:03]} Bg7 {[%emt 0:06:22]} 23. Rec1 {[%emt 0:04:50]} Nd5 {[%emt 0:04:48]} 24. Rab1 {[%emt 0:04:34]} O-O-O {[%emt 0:02:47]} 25. Qe1 {[%emt 0:01:49]} Rdh8 {[%emt 0:07:40]} 26. Qe4 {[%emt 0:03:51]} Rh1+ {[%emt 0:07:14]} 27. Kg2 {[%emt 0:00:05]} Rxc1 {[%emt 0:00:05]} 28. Rxc1 {[%emt 0:00:03]} Qd7 {[%emt 0:01:46]} 29. Kf1 {[%emt 0:03:08]} Rh1+ {[%emt 0:00:52]} 30. Ng1 {[%emt 0:00:08]} Qh3+ {[%emt 0:02:45]} 31. Qg2 {[%emt 0:00:11]} Qxg2+ {[%emt 0:00:11]} 32. Kxg2 {[%emt 0:00:06]} Rh5 {[%emt 0:00:19]} 33. g4 {[%emt 0:00:08]} Rh8 {[%emt 0:02:32]} 34. Ne2 {[%emt 0:00:16]} Kc7 {[%emt 0:01:06]} 35. Rb1 {[%emt 0:01:47]} b6 {[%emt 0:00:36]} 36. Ne3 {[%emt 0:00:05]} Nxe3+ {[%emt 0:01:17]} 37. fxe3 {[%emt 0:02:50]} e5 {[%emt 0:05:51]} 38. Rf1 {[%emt 0:01:22]} Rf8 {[%emt 0:00:06]} 39. g5 {[%emt 0:00:19]} exd4 {[%emt 0:00:49]} 40. exd4 {[%emt 0:00:00]} Kd6 {[%emt 0:00:00]} 41. Rb1 {[%emt 0:03:24]} Rb8 {[%emt 0:03:11]} 42. Kf3 {[%emt 0:00:04]} f6 {[%emt 0:00:37]} 43. gxf6 {[%emt 0:04:12]} Bxf6 {[%emt 0:00:04]} 44. Ke4 {[%emt 0:00:23]} b5 {[%emt 0:03:34]} 45. Kd3 {[%emt 0:00:55]} b4 {[%emt 0:01:46]} 46. Ng3 {[%emt 0:06:14]} Kd5 {[%emt 0:01:05]} 47. Ne2 {[%emt 0:00:25]} g5 {[%emt 0:00:54]} 48. Nc3+ {[%emt 0:00:07]} Ke6 {[%emt 0:02:52]} 49. Ne4 {[%emt 0:00:40]} Rd8 {[%emt 0:02:06]} 50. Rc1 {[%emt 0:03:07]} Rxd4+ {[%emt 0:04:26]} 51. Ke3 {[%emt 0:00:07]} Rxe4+ {[%emt 0:00:04]} 52. Kxe4 {[%emt 0:00:04]} Kd6 {[%emt 0:00:12]} 53. Rf1 {[%emt 0:00:54]} Ke6 {[%emt 0:06:32]} 54. Rf3 {[%emt 0:01:32]} Bc3 {[%emt 0:02:38]} 55. Rf5 {[%emt 0:00:43]} b3 {[%emt 0:02:49]} 56. Rxg5 {[%emt 0:00:09]} b2 {[%emt 0:00:19]} 57. Rg1 {[%emt 0:00:03]} Bd2 {[%emt 0:00:50]} 58. Kd3 {[%emt 0:00:08]} Bc1 {[%emt 0:00:47]} 59. Kc2 {[%emt 0:00:04]} Kd5 {[%emt 0:00:21]} 60. Rg4 {[%emt 0:01:36]} c5 {[%emt 0:03:09]} 61. Rg8 {[%emt 0:00:49]} 1-0